bitfinex/quotes_BTCUSD_20240613
["timestamp","ask_amount","ask_price","bid_price","bid_amount"]
[1718251946421,0.1346684,67619.0,67618.0,0.02]
[1718251946587,0.1486684,67619.0,67618.0,0.02]
[1718251946764,0.028,67619.0,67618.0,0.02]
[1718251947113,0.14959528,67619.0,67618.0,0.02]
[1718251947487,0.14633173,67619.0,67618.0,0.02]
[1718251947814,0.13559528,67619.0,67618.0,0.02]
[1718251948155,0.14959528,67619.0,67618.0,0.02]
[1718251948765,0.14959528,67619.0,67617.0,0.02]
[1718251948974,0.12159528,67618.0,67617.0,0.02]
[1718251951137,0.13559528,67618.0,67617.0,0.021]
[1718251951562,0.13559528,67618.0,67617.0,0.021946]
[1718251951978,0.14959528,67618.0,67617.0,0.021946]
[1718251954201,0.29639528,67618.0,67617.0,0.001946]
[1718251954399,0.36779528,67618.0,67617.0,0.001946]
[1718251954610,0.57906058,67618.0,67617.0,0.001946]
[1718251955787,0.51436058,67618.0,67617.0,0.001946]
[1718251956600,0.73688051,67618.0,67617.0,0.001946]
[1718251957484,0.52561521,67618.0,67617.0,0.001946]
[1718251957714,0.72333068,67618.0,67617.0,0.001946]
[1718251957910,0.70933068,67618.0,67617.0,0.001946]
[1718251958085,0.69533068,67618.0,67617.0,0.000946]
[1718251958286,0.70933068,67618.0,67617.0,0.000946]
[1718251958525,0.72333068,67618.0,67617.0,0.000946]
[1718251958728,0.70933068,67618.0,67617.0,0.000946]
[1718251958971,0.69533068,67618.0,67617.0,0.000946]
[1718251959185,0.72333068,67618.0,67617.0,0.000946]
[1718251959339,0.65193068,67618.0,67617.0,0.000946]
[1718251960043,0.72333068,67618.0,67617.0,0.000946]
[1718251960424,0.65193068,67618.0,67617.0,0.000946]
[1718251960684,0.72333068,67618.0,67617.0,0.000946]
[1718251961329,0.73169918,67618.0,67617.0,0.000946]
[1718251962111,0.72817044,67618.0,67617.0,0.000946]
[1718251963518,0.72817044,67618.0,67617.0,0.000595]
[1718251964532,0.82320348,67618.0,67617.0,0.000595]
[1718251965015,0.84098076,67618.0,67617.0,0.000595]
[1718251967454,0.76958076,67618.0,67617.0,0.000595]
[1718251967666,0.84098076,67618.0,67617.0,0.000595]
[1718251968081,0.84098076,67618.0,67614.0,0.000946]
[1718251968082,0.005355,67617.0,67614.0,0.000946]
[1718251968296,0.0714,67615.0,67614.0,0.000946]
[1718251968502,0.53987044,67615.0,67614.0,0.000946]
[1718251971233,0.64379242,67615.0,67614.0,0.000946]
[1718251971437,0.64482101,67615.0,67614.0,0.000946]
[1718251972406,0.65882101,67615.0,67614.0,0.000946]
[1718251974774,0.65954811,67615.0,67614.0,0.000946]
[1718251977677,0.56962613,67615.0,67614.0,0.000946]
[1718251981804,0.49822613,67615.0,67614.0,0.000946]
[1718251982036,0.56962613,67615.0,67614.0,0.000946]
[1718251982251,0.55562613,67615.0,67614.0,0.000946]
[1718251982881,0.56962613,67615.0,67614.0,0.000946]
[1718251983092,0.91959307,67615.0,67614.0,0.000946]
[1718251983337,1.08289307,67615.0,67614.0,0.000946]
[1718251983568,1.13515615,67615.0,67614.0,0.000946]
[1718251983798,1.2458831,67615.0,67614.0,0.000946]
[1718251984018,1.13515615,67615.0,67614.0,0.000946]
[1718251984223,1.24592642,67615.0,67614.0,0.000946]
[1718251984443,1.13192642,67615.0,67614.0,0.000946]
[1718251984659,1.11792642,67615.0,67614.0,0.000946]
[1718251984873,0.92308921,67615.0,67614.0,0.000946]
[1718251985079,0.93708921,67615.0,67614.0,0.000946]
[1718251985310,0.65048921,67615.0,67614.0,0.000946]
[1718251985524,0.5253062,67615.0,67614.0,0.000946]
[1718251985737,0.56960846,67615.0,67614.0,0.000946]
[1718251985943,0.4253062,67615.0,67614.0,0.000946]
[1718251987224,0.3539062,67615.0,67614.0,0.020946]
[1718251987440,0.3539062,67615.0,67614.0,0.165846]
[1718251987657,0.15032238,67615.0,67614.0,0.165846]
[1718251988337,0.12232238,67615.0,67614.0,0.165846]
[1718251988548,0.12232238,67616.0,67615.0,0.08]
[1718251988781,0.00086,67617.0,67616.0,0.02]
[1718251988984,0.10514517,67617.0,67616.0,0.02]
[1718251991172,0.11914517,67617.0,67616.0,0.02]
[1718251991372,0.11882807,67617.0,67616.0,0.02]
[1718251991682,0.13282807,67617.0,67616.0,0.02]
[1718251994328,0.13282807,67617.0,67616.0,0.25629]
[1718251994565,0.02886,67617.0,67616.0,0.2603746]
[1718251994964,0.02886,67617.0,67616.0,0.40469453]
[1718251995386,0.00086,67627.0,67626.0,0.03]
[1718251995601,0.00086,67627.0,67626.0,0.244]
[1718251995813,0.00086,67627.0,67626.0,0.27281575]
[1718251996845,0.00186,67627.0,67626.0,0.27381575]
[1718251997048,0.00186,67627.0,67626.0,0.20241575]
[1718251997245,0.00186,67627.0,67626.0,0.20141575]
[1718251997246,0.00086,67627.0,67626.0,0.20141575]
[1718251998482,0.00086,67627.0,67626.0,0.1726]
[1718251998625,0.00086,67627.0,67626.0,0.2006]
[1718251998626,0.00286,67627.0,67626.0,0.2006]
[1718251999234,0.00286,67627.0,67626.0,0.1866]
[1718251999235,0.00186,67627.0,67626.0,0.1866]
[1718251999556,0.00086,67627.0,67626.0,0.1726]
[1718252000137,0.00286,67627.0,67626.0,0.2006]
[1718252000363,0.00286,67627.0,67626.0,0.26408]
[1718252000594,0.00186,67627.0,67626.0,0.25008]
[1718252001227,0.00186,67627.0,67626.0,0.39439993]
[1718252001455,0.00186,67627.0,67626.0,0.55009993]
[1718252001659,0.00186,67627.0,67626.0,0.65009993]
[1718252001873,0.00086,67627.0,67626.0,0.63609993]
[1718252002101,0.00086,67627.0,67626.0,0.66409993]
[1718252002526,0.00086,67627.0,67626.0,0.75009993]
[1718252002913,0.00086,67627.0,67626.0,0.94259993]
[1718252006671,0.00086,67627.0,67626.0,0.95997596]
[1718252010941,0.00086,67627.0,67626.0,0.94259993]
[1718252015062,0.00086,67627.0,67626.0,0.84259993]
[1718252015636,0.00086,67627.0,67626.0,0.86028273]
[1718252016733,0.00086,67627.0,67626.0,0.96028273]
[1718252018870,0.00086,67627.0,67626.0,0.78178273]
[1718252019094,0.00086,67627.0,67626.0,0.85318273]
[1718252019319,0.00086,67627.0,67626.0,0.75318273]
[1718252019599,0.00086,67627.0,67626.0,0.85318273]
[1718252020045,0.00086,67627.0,67626.0,0.75318273]
[1718252021344,0.00086,67627.0,67626.0,0.68178273]
[1718252021566,0.00086,67627.0,67626.0,0.75318273]
[1718252022227,0.00086,67627.0,67626.0,0.85318273]
[1718252022444,0.00086,67627.0,67626.0,0.75318273]
[1718252023082,0.00086,67627.0,67626.0,0.85318273]
[1718252023538,0.00086,67627.0,67626.0,0.91630555]
[1718252024076,0.00086,67627.0,67626.0,0.81630555]
[1718252025018,0.00086,67627.0,67626.0,0.32808948]
[1718252025239,0.00086,67627.0,67626.0,0.15668948]
[1718252025573,0.00086,67627.0,67626.0,0.13728386]
[1718252025886,0.00086,67627.0,67626.0,0.14728386]
[1718252026336,0.00086,67627.0,67626.0,0.12328386]
[1718252026571,0.00086,67627.0,67626.0,0.1054]
[1718252026796,0.00086,67627.0,67626.0,0.014]
[1718252026997,0.00086,67627.0,67623.0,0.02]
[1718252026998,0.0606,67626.0,67623.0,0.02]
[1718252027257,0.1382,67626.0,67623.0,0.02]
[1718252027465,0.18100068,67625.0,67623.0,0.02]
[1718252027667,0.18100068,67625.0,67622.0,0.02]
[1718252027668,0.10340068,67624.0,67622.0,0.02]
[1718252027895,0.10340068,67624.0,67621.0,0.02]
[1718252028108,0.10340068,67624.0,67622.0,0.02]
[1718252028740,0.10340068,67624.0,67623.0,0.011]
[1718252029163,0.10340068,67624.0,67622.0,0.02]
[1718252029369,0.0776,67625.0,67622.0,0.02]
[1718252029538,0.10410202,67624.0,67622.0,0.02]
[1718252029987,0.10410202,67624.0,67623.0,0.02]
[1718252030162,0.0776,67625.0,67623.0,0.02]
[1718252030722,0.001,67624.0,67623.0,0.02]
[1718252030935,0.0776,67625.0,67624.0,0.02]
[1718252031407,0.0776,67625.0,67623.0,0.046]
[1718252031618,0.0776,67625.0,67624.0,0.02]
[1718252032277,0.0786,67625.0,67624.0,0.034]
[1718252032481,0.0796,67625.0,67624.0,0.046]
[1718252033520,0.07931272,67625.0,67624.0,0.046]
[1718252041873,0.07931272,67625.0,67624.0,0.1981]
[1718252041874,0.002,67625.0,67624.0,0.1981]
[1718252042120,0.002,67625.0,67624.0,0.36282139]
[1718252043567,0.001,67625.0,67624.0,0.34082139]
[1718252043767,0.001,67625.0,67624.0,0.35082139]
[1718252043983,0.001,67625.0,67624.0,0.36482139]
[1718252044304,0.00086,67627.0,67626.0,0.02]
[1718252044462,0.00086,67627.0,67626.0,0.03]
[1718252045833,0.00086,67627.0,67626.0,0.044]
[1718252047667,0.00086,67627.0,67626.0,0.058]
[1718252049114,0.00086,67627.0,67626.0,0.1294]
[1718252053857,0.00086,67627.0,67626.0,0.27371993]
[1718252054321,0.00086,67627.0,67626.0,0.32715641]
[1718252054743,0.00086,67627.0,67626.0,0.42941993]
[1718252054954,0.00086,67627.0,67626.0,0.35801993]
[1718252055165,0.00086,67627.0,67626.0,0.42941993]
[1718252057510,0.00086,67628.0,67627.0,0.29344]
[1718252057701,0.00086,67628.0,67627.0,0.33775993]
[1718252057847,0.00086,67628.0,67627.0,0.40194484]
[1718252058893,0.00086,67628.0,67627.0,0.42994484]
[1718252060036,0.00086,67628.0,67627.0,0.49360484]
[1718252060361,0.00086,67628.0,67627.0,0.42220484]
[1718252060561,0.00086,67628.0,67627.0,0.49360484]
[1718252061433,0.12812,67639.0,67638.0,0.02]
[1718252062751,0.12912,67639.0,67638.0,0.021]
[1718252062949,0.13212,67639.0,67638.0,0.022]
[1718252072048,0.13112,67639.0,67638.0,0.021]
[1718252072278,0.12812,67639.0,67638.0,0.02]
[1718252072499,0.1407,67646.0,67645.0,0.02]
[1718252072757,0.10332582,67646.0,67645.0,0.02]
[1718252072968,0.07776,67649.0,67648.0,0.02]
[1718252072969,0.08096,67649.0,67648.0,0.02]
[1718252073180,0.18427827,67649.0,67648.0,0.02]
[1718252073608,0.08096,67649.0,67648.0,0.02]
[1718252073822,0.18507203,67649.0,67648.0,0.02]
[1718252074257,0.18549029,67649.0,67648.0,0.021]
[1718252074471,0.08196,67649.0,67648.0,0.021]
[1718252075517,0.08496,67649.0,67648.0,0.022]
[1718252076149,0.00486,67649.0,67648.0,0.022]
[1718252079718,0.00486,67649.0,67648.0,0.032]
[1718252079987,0.00486,67649.0,67648.0,0.1034]
[1718252080228,0.00486,67649.0,67648.0,0.09931232]
[1718252080476,0.00486,67649.0,67648.0,0.02791232]
[1718252080682,0.00486,67649.0,67648.0,0.022]
[1718252082038,0.14846,67649.0,67648.0,0.022]
[1718252083535,0.08436,67649.0,67648.0,0.022]
[1718252083857,0.14506,67649.0,67648.0,0.022]
[1718252090137,0.08436,67649.0,67648.0,0.022]
[1718252093578,0.00486,67649.0,67648.0,0.022]
[1718252104817,0.00486,67649.0,67648.0,0.02791236]
[1718252105608,0.00486,67649.0,67648.0,0.022]
[1718252106356,0.14766,67649.0,67648.0,0.002]
[1718252106567,0.60662494,67649.0,67648.0,0.002]
[1718252106747,0.73393301,67649.0,67648.0,0.002]
[1718252106952,0.72594701,67649.0,67648.0,0.002]
[1718252107164,0.79734701,67649.0,67648.0,0.002]
[1718252107577,1.0916123,67649.0,67648.0,0.002]
[1718252107792,1.01374494,67649.0,67648.0,0.002]
[1718252108026,1.11167301,67649.0,67648.0,0.002]
[1718252108208,1.24505631,67649.0,67648.0,0.002]
[1718252108417,1.11067301,67649.0,67648.0,0.001]
[1718252108620,1.08654476,67649.0,67648.0,0.001]
[1718252109040,1.08654476,67649.0,67648.0,0.002]
[1718252109041,0.89670171,67649.0,67648.0,0.002]
[1718252109238,1.09912042,67649.0,67648.0,0.002]
[1718252109461,0.15,67644.0,67636.0,0.4774]
[1718252109676,0.2176,67639.0,67636.0,0.4774]
[1718252109888,0.77466042,67639.0,67636.0,0.4774]
[1718252110092,0.79766042,67639.0,67636.0,0.4774]
[1718252110311,0.72626042,67639.0,67636.0,0.4774]
[1718252110586,0.79766042,67639.0,67636.0,0.4774]
[1718252111268,0.93556098,67639.0,67636.0,0.4774]
[1718252111725,0.81166042,67639.0,67636.0,0.4774]
[1718252112393,0.81166042,67639.0,67629.0,0.02]
[1718252112816,0.82566042,67639.0,67638.0,0.001946]
[1718252113900,0.51900141,67639.0,67638.0,0.001946]
[1718252114194,0.27840141,67639.0,67638.0,0.001946]
[1718252114422,0.17231993,67639.0,67638.0,0.001946]
[1718252114632,0.17217396,67639.0,67638.0,0.001946]
[1718252115393,0.028,67639.0,67638.0,0.021946]
[1718252115832,0.028,67639.0,67638.0,0.097246]
[1718252116547,0.028,67639.0,67638.0,0.157446]
[1718252117411,0.014,67639.0,67638.0,0.153546]
[1718252117620,0.027,67639.0,67638.0,0.093146]
[1718252118034,0.027,67639.0,67638.0,0.242646]
[1718252118252,0.014,67639.0,67638.0,0.241646]
[1718252118469,0.00086,67649.0,67638.0,0.159246]
[1718252118688,0.00086,67649.0,67644.0,0.02]
[1718252118689,0.0714,67648.0,67644.0,0.02]
[1718252118907,0.0714,67648.0,67647.0,0.02]
[1718252119332,0.0714,67648.0,67642.0,0.02]
[1718252119570,0.0714,67648.0,67638.0,0.152246]
[1718252119571,0.0714,67648.0,67646.0,0.02]
[1718252119786,0.0714,67648.0,67644.0,0.02]
[1718252119998,0.0714,67648.0,67646.0,0.02]
[1718252120193,0.0854,67648.0,67647.0,0.02]
[1718252120823,0.0854,67648.0,67644.0,0.02]
[1718252121029,0.0714,67646.0,67644.0,0.001]
[1718252121588,0.0714,67646.0,67643.0,0.02]
[1718252121769,0.0714,67646.0,67645.0,0.02]
[1718252122218,0.1124,67648.0,67647.0,0.02]
[1718252122421,0.0844,67648.0,67647.0,0.02]
[1718252123280,0.0714,67648.0,67647.0,0.02]
[1718252124607,0.00086,67649.0,67648.0,0.02]
[1718252125407,0.00086,67649.0,67647.0,0.002]
[1718252125620,0.0714,67648.0,67647.0,0.022]
[1718252126060,0.0714,67648.0,67647.0,0.021]
[1718252126611,0.0714,67648.0,67647.0,0.02]
[1718252126811,0.0854,67648.0,67647.0,0.021]
[1718252127423,0.2306,67648.0,67647.0,0.001]
[1718252128020,0.33643266,67648.0,67647.0,0.001]
[1718252128423,0.35043266,67648.0,67647.0,0.002]
[1718252128658,0.52988186,67648.0,67647.0,0.002]
[1718252128871,0.55288186,67648.0,67647.0,0.002]
[1718252129080,0.51775259,67648.0,67647.0,0.002]
[1718252129287,1.07447176,67648.0,67647.0,0.002]
[1718252129506,1.11865887,67648.0,67647.0,0.002]
[1718252129715,0.1952,67642.0,67638.0,0.000946]
[1718252129928,0.28875996,67639.0,67638.0,0.000946]
[1718252130154,1.09089108,67639.0,67638.0,0.000946]
[1718252131192,1.19089108,67639.0,67638.0,0.000946]
[1718252131412,1.19089108,67639.0,67638.0,0.001946]
[1718252131413,1.25489108,67639.0,67638.0,0.001946]
[1718252132032,1.29909272,67639.0,67638.0,0.001946]
[1718252132244,1.31307895,67639.0,67638.0,0.001946]
[1718252132453,1.26889108,67639.0,67638.0,0.001946]
[1718252132664,1.14751901,67639.0,67638.0,0.001946]
[1718252133104,1.11951901,67639.0,67638.0,0.000946]
[1718252133402,0.96951901,67639.0,67638.0,0.000946]
[1718252133512,0.78015905,67639.0,67638.0,0.000946]
[1718252134634,0.76615905,67639.0,67638.0,0.000946]
[1718252134856,0.88135496,67639.0,67638.0,0.000946]
[1718252135087,0.68575905,67639.0,67638.0,0.000946]
[1718252135333,0.74370582,67639.0,67638.0,0.000946]
[1718252135571,0.43698665,67639.0,67638.0,0.000946]
[1718252135802,0.45098665,67639.0,67638.0,0.000946]
[1718252136256,0.75775068,67639.0,67638.0,0.000946]
[1718252136475,0.84990888,67639.0,67638.0,0.000946]
[1718252136702,1.16870888,67639.0,67638.0,0.000946]
[1718252136934,1.27590888,67639.0,67638.0,0.000946]
[1718252137182,1.17590888,67639.0,67638.0,0.000946]
[1718252138311,0.96745068,67639.0,67638.0,0.000946]
[1718252140931,0.78948527,67639.0,67638.0,0.000946]
[1718252143799,0.48272124,67639.0,67638.0,0.000946]
[1718252144036,0.86164687,67639.0,67638.0,0.000946]
[1718252144249,0.86164687,67639.0,67631.0,0.059746]
[1718252144464,0.26731993,67638.0,67631.0,0.059746]
[1718252144688,0.10790131,67637.0,67631.0,0.059746]
[1718252144904,0.35222124,67636.0,67631.0,0.059746]
[1718252145117,0.14431993,67636.0,67631.0,0.059746]
[1718252145333,0.1,67635.0,67626.0,0.4974]
[1718252145553,0.14431993,67634.0,67626.0,0.4774]
[1718252146012,0.10731354,67633.0,67626.0,0.4774]
[1718252146240,0.14431993,67632.0,67626.0,0.4774]
[1718252146775,0.14431993,67632.0,67626.0,0.4974]
[1718252146984,0.10765847,67631.0,67626.0,0.4974]
[1718252147189,0.10765847,67631.0,67626.0,0.4774]
[1718252147612,0.10765847,67631.0,67625.0,0.02]
[1718252148605,0.10765847,67631.0,67624.0,0.065246]
[1718252148807,0.03518479,67630.0,67626.0,0.02]
[1718252148990,0.10765847,67629.0,67624.0,0.065246]
[1718252149189,0.03518479,67630.0,67624.0,0.065246]
[1718252149401,0.14431993,67632.0,67624.0,0.065246]
[1718252149402,0.1080397,67629.0,67627.0,0.02]
[1718252149606,0.014,67631.0,67627.0,0.02]
[1718252149819,0.10803927,67630.0,67627.0,0.02]
[1718252150085,0.14431993,67632.0,67627.0,0.02]
[1718252150281,0.014,67630.0,67627.0,0.02]
[1718252150502,0.014,67630.0,67627.0,0.01]
[1718252150503,0.10804016,67629.0,67627.0,0.01]
[1718252151978,0.10804016,67628.0,67627.0,0.01]
[1718252152199,0.014,67630.0,67627.0,0.01]
[1718252152469,0.10804016,67629.0,67627.0,0.01]
[1718252152887,0.10804016,67628.0,67627.0,0.01]
[1718252153288,0.10804016,67628.0,67624.0,0.065246]
[1718252153696,0.10858265,67627.0,67624.0,0.065246]
[1718252153900,0.014,67630.0,67624.0,0.065246]
[1718252154208,0.108583,67629.0,67624.0,0.065246]
[1718252155253,0.108583,67628.0,67624.0,0.065246]
[1718252155458,0.108583,67627.0,67624.0,0.000946]
[1718252156031,0.108583,67626.0,67624.0,0.000946]
[1718252156186,0.108583,67625.0,67624.0,0.000946]
[1718252156391,0.108583,67628.0,67624.0,0.000946]
[1718252156772,0.075,67629.0,67624.0,0.000946]
[1718252156773,0.42938851,67627.0,67624.0,0.000946]
[1718252156894,0.0714,67625.0,67624.0,0.000946]
[1718252157103,0.179983,67625.0,67624.0,0.000946]
[1718252157715,0.179983,67625.0,67624.0,0.020946]
[1718252157910,0.48678852,67625.0,67624.0,0.020946]
[1718252158154,0.179983,67625.0,67624.0,0.020946]
[1718252158357,0.48678737,67625.0,67624.0,0.020946]
[1718252158762,0.48678705,67625.0,67624.0,0.020946]
[1718252159199,0.41538705,67625.0,67624.0,0.020946]
[1718252159626,0.108583,67625.0,67624.0,0.020946]
[1718252159829,0.0714,67628.0,67627.0,0.01]
[1718252160033,0.48677412,67628.0,67627.0,0.02]
[1718252160240,0.48677412,67628.0,67626.0,0.02]
[1718252160440,0.41537412,67627.0,67626.0,0.02]
[1718252160957,0.41537412,67627.0,67626.0,0.1608]
[1718252161169,0.1085781,67627.0,67626.0,0.1608]
[1718252161377,0.17126949,67635.0,67633.0,0.02]
[1718252161596,0.20860892,67634.0,67633.0,0.02]
[1718252161816,0.10860892,67634.0,67633.0,0.02]
[1718252162224,0.20860892,67634.0,67633.0,0.02]
[1718252162475,0.20860892,67634.0,67632.0,0.02]
[1718252162621,0.10860892,67633.0,67631.0,0.02]
[1718252162820,0.10860892,67633.0,67632.0,0.02]
[1718252165503,0.12260892,67633.0,67632.0,0.02]
[1718252166862,0.014,67633.0,67632.0,0.02]
[1718252167057,0.014,67633.0,67632.0,0.1596]
[1718252168043,0.014,67633.0,67632.0,0.02]
[1718252168247,0.0714,67634.0,67630.0,0.01]
[1718252168452,0.10975038,67633.0,67630.0,0.02]
[1718252168674,0.12375038,67633.0,67628.0,0.02]
[1718252168867,0.08932007,67638.0,67628.0,0.02]
[1718252168868,0.0714,67630.0,67628.0,0.02]
[1718252169281,0.012,67633.0,67628.0,0.02]
[1718252169495,0.10948731,67632.0,67631.0,0.02]
[1718252169905,0.0714,67635.0,67634.0,0.02]
[1718252170151,0.18086853,67635.0,67634.0,0.02]
[1718252170321,0.10946853,67635.0,67634.0,0.02]
[1718252170746,0.12353139,67635.0,67634.0,0.02]
[1718252171124,0.01716011,67638.0,67634.0,0.02]
[1718252171385,0.014,67639.0,67626.0,0.0621]
[1718252171386,0.25394643,67637.0,67635.0,0.02]
[1718252171590,0.1096265,67636.0,67635.0,0.02]
[1718252171930,0.1096265,67636.0,67635.0,0.0821]
[1718252172158,0.1096265,67638.0,67635.0,0.0821]
[1718252172375,0.1096265,67638.0,67634.0,0.01]
[1718252172591,0.1236265,67638.0,67634.0,0.01]
[1718252172793,0.1096265,67637.0,67634.0,0.01]
[1718252172919,0.014,67636.0,67634.0,0.01]
[1718252173126,0.1096265,67635.0,67634.0,0.01]
[1718252173339,0.1096265,67635.0,67634.0,0.02]
[1718252173541,0.10962747,67638.0,67635.0,0.02]
[1718252173742,0.10962747,67637.0,67636.0,0.02]
[1718252173942,0.10962747,67638.0,67636.0,0.02]
[1718252174145,0.03173481,67639.0,67632.0,0.0621]
[1718252174146,0.03173481,67639.0,67637.0,0.02]
[1718252174402,0.10950331,67638.0,67637.0,0.02]
[1718252174743,0.12350331,67638.0,67637.0,0.02]
[1718252174960,0.12350331,67638.0,67635.0,0.02]
[1718252175214,0.03173481,67639.0,67635.0,0.02]
[1718252175215,0.10950331,67637.0,67635.0,0.02]
[1718252175347,0.10950331,67636.0,67635.0,0.02]
[1718252175565,0.10950331,67638.0,67635.0,0.02]
[1718252175975,0.10950331,67638.0,67637.0,0.02]
[1718252176153,0.12350331,67638.0,67637.0,0.02]
[1718252176355,0.10950331,67638.0,67637.0,0.02]
[1718252176559,0.03173481,67639.0,67638.0,0.02]
[1718252178709,0.03173481,67639.0,67638.0,0.01]
[1718252178909,0.03173481,67639.0,67638.0,0.02]
[1718252179489,0.04573481,67639.0,67638.0,0.02]
[1718252180597,0.028,67639.0,67638.0,0.02]
[1718252182403,0.028,67639.0,67638.0,0.1611]
[1718252185104,0.014,67639.0,67638.0,0.1611]
[1718252185508,0.027,67639.0,67638.0,0.1611]
[1718252188171,0.027,67639.0,67638.0,0.1711]
[1718252188519,0.027,67639.0,67638.0,0.1611]
[1718252188922,0.027,67639.0,67638.0,0.1711]
[1718252190509,0.027,67639.0,67638.0,0.18821]
[1718252190928,0.027,67639.0,67638.0,0.25961]
[1718252191944,0.014,67639.0,67638.0,0.25961]
[1718252192194,0.015,67639.0,67638.0,0.26361]
[1718252192573,0.014,67639.0,67638.0,0.25961]
[1718252192811,0.014,67639.0,67638.0,0.26361]
[1718252193149,0.015,67639.0,67638.0,0.26361]
[1718252194246,0.015,67639.0,67638.0,0.76362993]
[1718252194648,0.015,67639.0,67638.0,0.83652852]
[1718252195602,0.015,67639.0,67638.0,0.76362993]
[1718252197508,0.015,67639.0,67638.0,0.66362993]
[1718252198147,0.015,67639.0,67638.0,0.76362993]
[1718252199527,0.015,67639.0,67638.0,0.7815768]
[1718252200922,0.00086,67649.0,67648.0,0.4289]
[1718252201152,0.00086,67649.0,67648.0,0.79461993]
[1718252201377,0.00086,67649.0,67648.0,0.86983117]
[1718252201737,0.00086,67649.0,67648.0,0.86982595]
[1718252201954,0.00086,67649.0,67648.0,0.91359413]
[1718252202107,0.00086,67649.0,67648.0,1.05791406]
[1718252202308,0.0012,67667.0,67666.0,0.02]
[1718252202743,0.0012,67667.0,67666.0,0.1589]
[1718252202981,0.00857,67676.0,67666.0,0.1589]
[1718252202982,0.00857,67676.0,67675.0,0.02]
[1718252204707,0.00857,67676.0,67675.0,0.1683]
[1718252204908,0.00857,67676.0,67675.0,0.19204016]
[1718252205330,0.01757,67676.0,67675.0,0.20304016]
[1718252205734,0.01757,67676.0,67675.0,0.20204016]
[1718252205943,0.01757,67676.0,67675.0,0.20304016]
[1718252206194,0.02657,67676.0,67675.0,0.20304016]
[1718252206645,0.02657,67676.0,67675.0,0.44736009]
[1718252206760,0.01757,67676.0,67675.0,0.44636009]
[1718252206961,0.00857,67676.0,67675.0,0.44636009]
[1718252207161,0.00857,67676.0,67675.0,0.56036009]
[1718252207162,0.00957,67676.0,67675.0,0.56036009]
[1718252207365,0.00957,67676.0,67675.0,0.71606009]
[1718252207570,0.00957,67676.0,67675.0,0.66606009]
[1718252207881,0.00957,67676.0,67675.0,0.76606009]
[1718252208085,0.00957,67676.0,67675.0,0.66014993]
[1718252208306,0.00957,67676.0,67675.0,0.76014993]
[1718252208913,0.00957,67676.0,67675.0,0.66014993]
[1718252209302,0.00957,67676.0,67675.0,0.64614993]
[1718252209303,0.00857,67676.0,67675.0,0.64614993]
[1718252209738,0.00957,67676.0,67675.0,0.88230989]
[1718252210004,0.00100001,67676.0,67675.0,0.88230989]
[1718252210234,0.00100001,67676.0,67675.0,0.95427552]
[1718252210430,0.00100001,67676.0,67675.0,0.92033992]
[1718252212059,0.00856,67684.0,67683.0,0.3857]
[1718252212253,0.00856,67684.0,67683.0,1.02952252]
[1718252212491,0.00856,67684.0,67683.0,1.09126133]
[1718252213020,0.00856,67684.0,67683.0,1.09983133]
[1718252213445,0.00856,67703.0,67691.0,0.18]
[1718252213648,0.00856,67703.0,67694.0,0.4779]
[1718252213827,0.00856,67703.0,67695.0,0.3357]
[1718252214031,0.00856,67703.0,67695.0,0.67327085]
[1718252214821,0.00856,67703.0,67695.0,0.73367085]
[1718252215020,0.00856,67703.0,67702.0,0.08]
[1718252215244,0.00856,67703.0,67702.0,0.47242696]
[1718252215447,0.00856,67703.0,67702.0,0.64523966]
[1718252215791,0.00856,67703.0,67702.0,0.70093966]
[1718252216312,0.00856,67703.0,67702.0,0.79503263]
[1718252216551,0.00856,67703.0,67702.0,0.80903263]
[1718252216747,0.00856,67703.0,67702.0,0.79503263]
[1718252217174,0.00856,67703.0,67702.0,0.80903263]
[1718252217751,0.00856,67703.0,67702.0,0.26113263]
[1718252217952,0.00856,67703.0,67702.0,0.014]
[1718252218162,0.01634128,67703.0,67702.0,0.084]
[1718252219351,0.01634128,67703.0,67702.0,0.07]
[1718252219755,0.01634128,67703.0,67702.0,0.23831993]
[1718252219954,0.00856,67703.0,67702.0,0.80941993]
[1718252220156,0.00856,67703.0,67702.0,0.91757792]
[1718252221199,0.00856,67703.0,67702.0,0.45635799]
[1718252221418,0.00856,67703.0,67702.0,0.17]
[1718252221625,0.00856,67703.0,67702.0,0.034]
[1718252222066,0.00856,67703.0,67702.0,0.55741993]
[1718252222606,0.00856,67703.0,67702.0,0.57478621]
[1718252222805,0.00856,67703.0,67702.0,0.56078621]
[1718252223017,0.00712,67705.0,67704.0,0.07]
[1718252223225,0.00712,67705.0,67704.0,0.22431993]
[1718252223439,0.00712,67705.0,67704.0,0.32431993]
[1718252224708,0.00712,67705.0,67704.0,0.43831993]
[1718252225321,0.00712,67705.0,67704.0,0.33831993]
[1718252225516,0.00712,67705.0,67704.0,0.41160524]
[1718252225833,0.0635983,67722.0,67719.0,0.02]
[1718252226216,0.00779437,67721.0,67719.0,0.02]
[1718252226792,0.00779437,67721.0,67720.0,0.02]
[1718252226960,0.096877,67732.0,67720.0,0.02]
[1718252229765,0.0621,67731.0,67730.0,0.01262]
[1718252231472,0.0611,67731.0,67730.0,0.01262]
[1718252233001,0.0621,67731.0,67730.0,0.01362]
[1718252233209,0.0611,67731.0,67730.0,0.01262]
[1718252233608,0.0611,67731.0,67730.0,0.002]
[1718252233844,0.0611,67731.0,67727.0,0.01262]
[1718252234250,0.0621,67731.0,67730.0,0.01362]
[1718252236373,0.0611,67731.0,67730.0,0.01262]
[1718252237357,0.0611,67731.0,67720.0,0.14942878]